bitfinex/quotes_ETHUSD_20260226
["timestamp","ask_amount","ask_price","bid_price","bid_amount"]
[1772089502735,0.5015,2069.1,2068.9,0.001]
[1772089503957,0.499,2069.0,2068.6,0.001]
[1772089504625,0.499,2068.8,2068.4,0.001]
[1772089506841,0.499,2068.6,2068.4,0.001]
[1772089508746,1.70755822,2068.6,2068.4,0.001]
[1772089509071,0.499,2068.5,2068.4,0.001]
[1772089510572,1.70753292,2068.7,2068.4,0.001]
[1772089510749,0.499,2068.6,2068.4,0.001]
[1772089516082,1.2085509,2068.6,2068.4,0.001]
[1772089516284,0.499,2068.5,2068.4,0.001]
[1772089522396,0.501,2068.5,2068.4,0.001]
[1772089523291,0.002,2068.5,2068.4,0.003]
[1772089523701,0.501,2068.5,2068.4,0.001]
[1772089526603,0.002,2068.5,2068.4,0.001]
[1772089529714,0.501,2068.5,2068.4,0.001]
[1772089529886,0.002,2068.5,2068.4,0.001]
[1772089532421,0.501,2068.5,2068.4,0.001]
[1772089532620,0.499,2068.4,2068.1,0.001]
[1772089533320,0.499,2068.4,2068.1,0.003]
[1772089534315,0.002,2068.3,2068.1,0.003]
[1772089539329,0.002,2068.3,2068.1,0.001]
[1772089539537,0.002,2068.3,2068.1,0.003]
[1772089539708,0.002,2068.3,2068.1,0.001]
[1772089539908,0.002,2068.3,2068.2,0.002]
[1772089542835,0.002,2068.5,2068.1,0.001]
[1772089545333,0.002,2068.5,2068.2,0.44212005]
[1772089545522,0.002,2068.8,2068.2,0.44212005]
[1772089546445,0.002,2068.8,2068.2,1.75712005]
[1772089546606,0.002,2068.8,2068.3,0.001]
[1772089546938,0.002,2068.8,2068.3,1.20972213]
[1772089547641,0.002,2068.4,2068.3,1.20972213]
[1772089547813,0.002,2068.8,2068.3,1.20972213]
[1772089548141,0.44212005,2068.6,2068.1,0.001]
[1772089548322,0.5,2068.5,2068.1,0.001]
[1772089549809,0.49987117,2068.1,2067.8,0.001]
[1772089550017,0.49987117,2067.8,2067.2,0.001]
[1772089550214,0.49987117,2067.8,2067.3,0.001]
[1772089551233,0.49987117,2067.7,2067.3,0.001]
[1772089553114,0.49987117,2067.7,2067.3,0.004]
[1772089553921,0.49987117,2067.7,2067.3,0.001]
[1772089556064,0.44212005,2068.1,2067.3,0.001]
[1772089556348,0.4995,2068.0,2067.5,0.001]
[1772089556948,0.4995,2068.0,2067.6,0.004]
[1772089557183,0.4995,2068.1,2067.7,0.001]
[1772089559150,0.4995,2068.0,2067.7,0.001]
[1772089560264,0.4995,2068.0,2067.9,0.001]
[1772089564270,1.20881975,2068.2,2067.9,0.005]
[1772089564271,0.4995,2068.2,2067.9,0.005]
[1772089565386,0.5015,2068.3,2068.0,0.001]
[1772089565674,0.5015,2068.3,2067.9,0.004]
[1772089565843,0.5015,2068.3,2067.9,0.005]
[1772089566028,0.4995,2068.2,2067.9,0.005]
[1772089566366,0.4995,2068.2,2067.9,0.004]
[1772089566862,0.4975,2068.0,2067.6,0.001]
[1772089567243,0.4975,2067.8,2067.4,0.001]
[1772089568129,0.4975,2067.7,2067.4,0.001]
[1772089570862,0.4975,2067.6,2067.4,0.001]
[1772089575658,0.4975,2067.5,2067.1,0.0061]
[1772089575861,0.497,2067.4,2067.1,0.0061]
[1772089579356,1.50416859,2067.7,2067.1,0.0061]
[1772089579542,0.497,2067.6,2067.1,0.0061]
[1772089580440,0.3,2067.4,2067.1,0.0061]
[1772089580643,0.3,2067.4,2067.2,0.006]
[1772089581554,0.3,2067.4,2067.3,0.006]
[1772089582050,0.497,2067.7,2067.3,0.006]
[1772089585586,0.497,2067.7,2067.3,0.0071]
[1772089585785,0.001,2067.5,2067.3,1.21640223]
[1772089587884,0.001,2067.5,2067.3,0.0071]
[1772089588398,0.001,2067.5,2067.3,0.0011]
[1772089588601,0.498,2067.5,2067.3,0.0011]
[1772089595998,0.001,2067.5,2067.3,0.0071]
[1772089599477,0.498,2067.5,2067.3,0.0011]
[1772089603082,0.001,2067.5,2067.3,0.0071]
[1772089604509,0.498,2067.5,2067.3,0.0011]
[1772089604678,0.498,2067.5,2067.3,0.0071]
[1772089604679,0.001,2067.5,2067.3,0.0071]
[1772089605374,0.001,2067.5,2067.4,0.006]
[1772089605577,0.002,2067.8,2067.7,0.006]
[1772089607710,0.002,2068.0,2067.7,0.006]
[1772089608514,0.499,2068.0,2067.7,0.006]
[1772089609790,1.70790204,2068.0,2067.7,0.006]
[1772089609997,0.499,2068.0,2067.5,1.21518318]
[1772089610199,0.499,2068.0,2067.6,0.006]
[1772089611597,0.499,2068.0,2067.9,0.001]
[1772089612338,0.002,2068.2,2068.0,0.004]
[1772089613612,0.002,2068.5,2068.2,0.004]
[1772089613786,0.5,2068.5,2068.2,0.004]
[1772089615413,0.5,2068.5,2068.2,1.21278058]
[1772089616213,0.5,2068.5,2068.2,0.004]
[1772089616394,0.498,2068.4,2068.1,0.004]
[1772089616599,0.498,2068.2,2067.9,0.001]
[1772089620524,0.498,2068.4,2068.0,0.004]
[1772089620723,0.498,2068.3,2067.9,0.001]
[1772089621030,0.498,2068.1,2067.9,0.001]
[1772089622813,0.498,2067.9,2067.6,0.001]
[1772089624511,0.4975,2067.8,2067.4,0.001]
[1772089624815,0.4975,2067.6,2067.4,0.001]
[1772089628642,2.0525,2068.0,2067.4,0.001]
[1772089628813,2.0525,2068.0,2067.5,0.005]
[1772089629903,3.26140158,2068.0,2067.5,0.005]
[1772089630141,0.4975,2067.9,2067.5,0.005]
[1772089630717,1.555,2068.0,2067.5,0.005]
[1772089631218,2.0525,2068.0,2067.5,0.005]
[1772089633041,0.4975,2067.9,2067.5,0.005]
[1772089635143,2.0525,2068.0,2067.5,0.005]
[1772089635438,0.4975,2067.9,2067.5,0.005]
[1772089636442,0.4975,2067.9,2067.6,0.001]
[1772089636624,0.002,2067.8,2067.6,0.001]
[1772089636826,0.4975,2067.7,2067.4,0.001]
[1772089637026,0.4975,2067.7,2067.4,0.007]
[1772089639949,0.4975,2067.7,2067.4,0.001]
[1772089641554,0.497,2067.6,2067.4,0.001]
[1772089641922,0.4965,2067.3,2067.1,0.0011]
[1772089642124,1.558,2067.5,2067.0,0.0011]
[1772089642125,0.4965,2067.1,2067.0,0.0011]
[1772089642822,0.4965,2067.1,2066.6,0.001]
[1772089643026,0.4965,2067.1,2066.7,1.21665196]
[1772089643227,0.4965,2067.1,2066.8,0.0022]
[1772089643428,0.4965,2067.3,2066.9,0.0011]
[1772089644037,0.4965,2067.2,2066.8,0.0081]
[1772089644258,0.4965,2067.2,2066.9,0.0011]
[1772089644555,0.4965,2067.4,2066.9,0.0081]
[1772089644751,0.4965,2067.4,2067.0,0.0081]
[1772089644954,0.4965,2067.4,2067.0,0.007]
[1772089646160,0.4965,2067.4,2067.1,0.0011]
[1772089646339,0.4965,2067.4,2067.0,1.21647505]
[1772089646737,0.49918002,2067.7,2067.1,0.0081]
[1772089646960,0.49918002,2067.7,2067.2,0.007]
[1772089647289,0.49918002,2067.4,2066.9,1.20953881]
[1772089647477,0.49918002,2067.4,2066.9,0.007]
[1772089648337,0.49918002,2067.4,2067.0,1.21648234]
[1772089648543,0.49918002,2067.6,2067.1,0.007]
[1772089648741,0.002,2067.5,2067.1,0.007]
[1772089648939,0.50118002,2067.5,2067.1,0.007]
[1772089651569,0.50118002,2067.5,2067.1,1.21641918]
[1772089651767,0.50118002,2067.5,2067.1,0.007]
[1772089655344,0.50118002,2067.5,2067.0,0.008]
[1772089656878,0.49924513,2067.5,2067.0,0.008]
[1772089657290,6.511e-05,2067.5,2067.2,0.007]
[1772089657481,6.511e-05,2067.5,2067.3,1.20925247]
[1772089657971,6.511e-05,2067.5,2067.3,1.21625247]
[1772089659686,6.511e-05,2067.5,2067.4,0.007]
[1772089660674,0.002,2067.7,2067.3,0.0081]
[1772089660868,0.002,2067.7,2067.5,0.007]
[1772089661180,0.002,2068.0,2067.5,0.005]
[1772089661909,0.002,2068.0,2067.6,0.005]
[1772089664311,0.4995,2068.0,2067.6,0.005]
[1772089664719,0.002,2068.0,2067.7,0.005]
[1772089664871,0.4995,2068.0,2067.7,0.005]
[1772089665075,0.4995,2068.0,2067.5,1.21418984]
[1772089665301,0.4995,2068.0,2067.5,1.20918984]
[1772089667008,0.4995,2068.0,2067.5,1.21418984]
[1772089667169,0.4995,2068.0,2067.6,0.005]
[1772089672782,0.4995,2068.0,2067.8,0.001]
[1772089675612,1.70842192,2068.0,2067.8,0.001]
[1772089675790,0.4975,2067.9,2067.5,0.001]
[1772089676382,0.497,2067.9,2067.5,0.001]
[1772089679609,1.20897633,2067.9,2067.5,0.001]
[1772089679815,0.497,2067.8,2067.5,0.001]
[1772089681814,0.497,2067.7,2067.5,0.001]
[1772089682221,0.4965,2067.6,2067.3,0.0011]
[1772089682823,0.4965,2067.5,2067.3,0.0011]
[1772089684919,0.4965,2067.6,2067.3,1.21040682]
[1772089685120,0.4985,2067.8,2067.5,0.007]
[1772089685440,0.4985,2067.8,2067.5,0.008]
[1772089688321,1.70751776,2067.8,2067.5,0.008]
[1772089688620,1.70751776,2067.8,2067.5,0.001]
[1772089689215,0.4965,2067.7,2067.3,0.0011]
[1772089690126,0.4965,2067.7,2067.4,0.008]
[1772089690422,0.498,2067.8,2067.4,0.008]
[1772089690621,0.002,2067.8,2067.4,0.008]
[1772089691090,0.002,2067.8,2067.4,1.20924698]
[1772089691295,0.002,2067.8,2067.5,0.008]
[1772089691624,0.498,2067.8,2067.5,0.008]
[1772089695423,0.002,2067.8,2067.5,0.008]
[1772089695603,0.002,2067.8,2067.7,0.30312848]
[1772089695799,0.002,2067.8,2067.7,0.008]
[1772089698231,0.002,2067.8,2067.7,1.21707288]
[1772089698414,0.002,2067.8,2067.7,0.30312848]
[1772089701702,0.002,2067.8,2067.7,0.008]
[1772089704839,0.002,2068.0,2067.6,1.20912607]
[1772089705045,0.002,2068.0,2067.5,0.29612848]
[1772089705046,0.002,2068.0,2067.7,0.008]
[1772089708939,0.002,2068.0,2067.7,0.009]
[1772089709344,0.002,2067.8,2067.7,0.001]
[1772089710534,0.002,2067.8,2067.7,0.009]
[1772089710923,0.002,2068.3,2067.8,0.008]
[1772089711123,0.498,2068.5,2068.1,0.30312848]
[1772089711629,0.496,2068.4,2067.9,1.63512848]
[1772089711829,0.496,2068.4,2068.0,0.008]
[1772089714453,0.496,2068.4,2068.0,1.21689424]
[1772089715325,0.496,2068.4,2068.1,0.008]
[1772089717640,0.496,2068.4,2068.0,1.21689424]
[1772089720464,0.496,2068.4,2068.1,0.29512848]
[1772089721255,0.496,2068.4,2068.2,0.001]
[1772089722060,0.498,2068.4,2068.2,0.001]
[1772089722424,0.002,2068.4,2068.3,0.29512848]
[1772089722574,0.002,2068.7,2068.5,0.008]
[1772089722746,0.002,2068.7,2068.2,2.9522848]
[1772089722747,0.498,2069.0,2068.7,0.008]
[1772089722934,0.47511102,2069.2,2068.9,0.77567964]
[1772089723469,0.47511102,2069.4,2068.9,0.77567964]
[1772089723678,0.47511102,2069.4,2069.1,0.29512848]
[1772089724337,3.56082812,2069.9,2069.4,0.48055116]
[1772089724338,0.784,2069.9,2069.4,0.48055116]
[1772089724557,2.46694299,2069.9,2069.4,0.48055116]
[1772089724835,0.47511102,2069.8,2069.3,0.29512848]
[1772089725272,0.47511102,2069.8,2069.3,0.77567964]
[1772089726169,1.25911102,2069.9,2069.4,0.48055116]
[1772089726472,0.47511102,2069.8,2069.4,0.48055116]
[1772089726874,0.47511102,2069.8,2069.4,1.68860325]
[1772089727477,0.47511102,2069.8,2069.5,0.77567964]
[1772089728053,1.68284481,2070.0,2069.5,0.29512848]
[1772089728364,0.47511102,2070.0,2069.6,0.48055116]
[1772089728771,1.20769942,2070.1,2069.6,0.48055116]
[1772089729163,1.68281044,2070.1,2069.6,0.48055116]
[1772089729480,0.47511102,2070.0,2069.6,0.48055116]
[1772089731178,0.47511102,2070.3,2069.6,1.337]
[1772089731380,0.47511102,2070.3,2069.7,0.48055116]
[1772089732685,0.47511102,2069.9,2069.3,3.25888932]
[1772089732986,0.47511102,2069.7,2069.1,0.48055116]
[1772089733478,0.47511102,2069.5,2069.1,0.48055116]
[1772089735608,0.47511102,2069.3,2068.9,0.48055116]
[1772089736204,0.47511102,2069.3,2068.7,0.49683408]
[1772089736404,0.47511102,2069.3,2068.8,0.79196256]
[1772089736577,0.47511102,2069.3,2068.9,0.49683408]
[1772089738502,0.45891846,2069.5,2069.0,0.79196256]
[1772089738995,0.45891846,2069.5,2068.6,1.337]
[1772089738996,0.45891846,2069.3,2068.6,0.49683408]
[1772089739168,0.45891846,2069.1,2068.7,0.49683408]
[1772089739771,0.45891846,2069.1,2068.7,1.70532134]
[1772089740506,0.45891846,2069.5,2069.1,0.49683408]
[1772089741079,0.45891846,2069.5,2068.8,0.29512848]
[1772089741277,0.45891846,2069.3,2068.6,0.49683408]
[1772089741603,0.45891846,2069.3,2068.8,0.49683408]
[1772089741802,0.45891846,2069.2,2068.8,0.49683408]
[1772089744412,1.66712164,2069.2,2068.8,0.49683408]
[1772089745098,0.45891846,2069.1,2068.6,0.49683408]
[1772089746002,0.45891846,2069.1,2069.0,0.001]
[1772089746507,1.66717325,2069.1,2069.0,0.001]
[1772089746690,1.66717325,2069.1,2068.8,0.001]
[1772089746691,0.45891846,2069.0,2068.8,0.001]
[1772089749213,0.45891846,2068.9,2068.8,0.001]
[1772089749410,0.45891846,2068.9,2068.5,0.001]
[1772089751412,1.66734846,2068.8,2068.5,0.001]
[1772089751819,0.45891846,2068.7,2068.5,0.001]
[1772089753915,0.45891846,2068.6,2068.5,0.001]
[1772089754496,0.45891846,2068.5,2068.2,0.001]
[1772089756524,3.21643186,2068.7,2068.2,0.49783408]
[1772089756693,0.45891846,2068.6,2068.2,0.49783408]
[1772089757624,1.66738422,2068.8,2068.2,0.49783408]
[1772089757799,0.45891846,2068.7,2068.2,0.49783408]
[1772089758216,1.66744286,2068.7,2068.2,0.49783408]
[1772089758918,1.66744286,2068.7,2068.4,0.001]
[1772089760630,0.45891846,2068.7,2068.4,0.001]
[1772089761615,1.66741238,2068.7,2068.4,0.001]
[1772089762401,0.45891846,2068.7,2068.4,0.001]
[1772089763010,1.66733051,2068.9,2068.5,0.49683408]
[1772089763204,1.21035838,2069.0,2068.5,0.49683408]
[1772089764498,1.66927684,2069.0,2068.5,0.49683408]
[1772089768650,1.66927684,2069.0,2068.5,1.70543114]
[1772089768802,0.002,2069.0,2068.6,0.45099212]
[1772089769630,0.002,2069.0,2068.7,0.45099212]
[1772089769833,0.002,2069.2,2068.7,0.45099212]
[1772089770056,0.002,2069.2,2068.9,0.45099212]
[1772089770202,0.002,2069.2,2069.0,0.45099212]
[1772089771350,0.49425784,2069.2,2068.6,1.20852137]
[1772089771528,0.49425784,2069.2,2068.7,0.45099212]
[1772089772851,0.49425784,2069.2,2068.8,0.45099212]
[1772089773029,0.002,2069.0,2068.8,0.45099212]
[1772089773673,0.002,2069.5,2068.9,0.44206705]
[1772089773957,1.70231224,2069.5,2069.1,0.45099212]
[1772089774253,0.49425784,2069.5,2069.1,0.45099212]
[1772089775349,0.002,2069.5,2069.2,0.48555629]
[1772089783364,0.49332715,2069.5,2068.8,1.69394329]
[1772089783660,0.49332715,2069.5,2068.9,0.48555629]
[1772089785166,0.49332715,2069.5,2069.3,0.001]
[1772089785653,1.7014065,2069.5,2069.3,0.001]
[1772089786728,1.21007935,2069.5,2069.3,0.001]
[1772089786933,0.49132715,2069.4,2069.3,0.001]
[1772089790762,0.002,2069.5,2069.4,0.48555629]
[1772089790976,0.002,2069.8,2069.4,0.48555629]
[1772089791137,0.002,2069.8,2069.6,0.48555629]
[1772089794265,0.002,2069.8,2069.7,0.48555629]
[1772089797169,0.002,2069.8,2069.4,1.6891071]
[1772089797499,0.002,2069.8,2069.5,0.481059]
[1772089797867,0.002,2069.6,2069.5,0.481059]
[1772089798368,0.49433592,2070.1,2069.7,0.481059]
[1772089798567,0.49633592,2070.1,2069.7,0.481059]
[1772089799653,1.7040132,2070.1,2069.7,0.481059]
[1772089800773,0.49433592,2069.9,2069.4,0.001]
[1772089800942,0.49433592,2069.7,2069.4,0.001]
[1772089801570,0.49433592,2069.7,2069.4,0.482059]
[1772089802356,0.49433592,2069.7,2069.4,0.001]
[1772089807175,0.49433592,2069.6,2069.4,0.001]
[1772089807847,0.49433592,2069.5,2069.4,0.001]
[1772089808040,0.49433592,2069.5,2069.3,0.001]
[1772089809075,0.49433592,2069.9,2069.3,0.77664933]
[1772089809379,0.49433592,2069.9,2069.4,0.481059]
[1772089810489,0.49433592,2069.8,2069.5,0.001]
[1772089810670,0.002,2069.6,2069.5,0.001]
[1772089811174,0.002,2069.8,2069.6,0.481059]
[1772089811379,0.002,2070.1,2069.8,0.481059]
[1772089811683,0.49433592,2070.4,2070.0,0.481059]
[1772089811979,0.49433592,2070.6,2070.0,0.481059]
[1772089812382,9.9612111,2071.2,2070.0,0.481059]
[1772089812383,0.49433592,2071.0,2070.4,0.481059]
[1772089812555,1.70149192,2071.0,2070.5,0.481059]
[1772089812751,0.49433592,2070.9,2070.5,0.481059]
[1772089812955,0.29459033,2070.8,2070.3,0.481059]
[1772089813176,0.49433592,2070.7,2070.1,4.70005396]
[1772089813380,0.49433592,2070.7,2070.1,4.40546363]
[1772089813580,0.49433592,2070.7,2070.1,3.92440463]
[1772089813885,0.49433592,2070.7,2070.2,0.481059]
[1772089814396,0.49433592,2070.7,2070.0,3.02675424]
[1772089814559,0.49433592,2070.7,2070.1,0.481059]
[1772089814761,0.49433592,2070.9,2070.1,0.481059]
[1772089815858,1.2071463,2071.0,2070.2,0.481059]
[1772089816062,1.70148222,2071.0,2070.2,0.481059]
[1772089816889,0.49433592,2070.9,2070.4,0.481059]
[1772089817269,0.49433592,2070.9,2070.2,0.481059]
[1772089817477,0.49433592,2070.9,2070.1,0.481059]
[1772089820019,0.49433592,2070.7,2070.1,1.68872317]
[1772089820777,0.49433592,2070.7,2070.1,0.481059]
[1772089821016,0.49433592,2070.7,2070.1,1.68872478]
[1772089821185,0.49433592,2070.7,2070.2,0.481059]
[1772089822205,0.49433592,2070.9,2070.3,0.481059]
[1772089824273,0.49433592,2071.7,2070.6,0.481059]
[1772089824596,0.49433592,2071.7,2070.5,0.481059]
[1772089824979,0.002,2071.0,2070.5,0.481059]
[1772089825401,0.002,2071.0,2070.6,0.481059]
[1772089826601,0.002,2071.0,2070.7,1.68551713]
[1772089826902,0.002,2071.0,2070.8,0.47819594]
[1772089827205,0.002,2071.0,2070.6,1.68553074]
[1772089827538,0.002,2071.0,2070.6,1.68555044]
[1772089831303,0.49990382,2071.0,2070.6,1.68557138]
[1772089831807,0.49990382,2071.0,2070.4,1.68565717]
[1772089832572,0.49990382,2071.0,2070.6,0.47819594]
[1772089832573,0.002,2071.0,2070.6,0.47819594]
[1772089832778,0.49790382,2071.4,2070.7,0.47819594]
[1772089834042,0.49790382,2071.4,2070.8,1.68545883]
[1772089834908,0.47133689,2071.3,2070.6,0.47919908]
[1772089835120,0.47133689,2071.3,2070.5,1.20739219]
[1772089835121,0.47133689,2071.3,2070.5,3.03159127]
[1772089835639,0.47133689,2071.3,2070.6,0.47919908]
[1772089836229,0.47133689,2071.2,2070.7,1.20732119]
[1772089836528,0.47133689,2071.2,2070.7,1.68652027]
[1772089836835,0.47133689,2071.2,2070.7,0.47919908]
[1772089837895,0.47133689,2071.2,2070.7,0.48019908]
[1772089838224,0.002,2071.1,2070.7,1.68748752]
[1772089838796,0.47333689,2071.1,2070.7,0.48019908]
[1772089839014,0.47333689,2071.1,2070.7,0.001]
[1772089839216,0.47333689,2071.1,2070.5,1.346]
[1772089839403,0.47133689,2070.9,2070.5,1.346]
[1772089841506,0.47133689,2070.8,2070.5,0.001]
[1772089843396,0.47133689,2070.6,2070.5,0.001]
[1772089843804,0.45133689,2070.6,2070.5,0.001]
[1772089850070,0.47133689,2070.5,2070.0,0.001]
[1772089850245,0.47133689,2070.4,2070.0,0.001]
[1772089850756,0.47133689,2070.2,2070.0,0.001]
[1772089852912,0.47133689,2070.1,2069.8,0.001]
[1772089857022,0.4539985,2070.0,2069.8,0.001]
[1772089857226,0.4539985,2070.0,2069.5,0.001]
[1772089857227,0.4539985,2069.9,2069.5,0.001]
[1772089857592,0.4539985,2069.8,2069.5,0.001]
[1772089858549,0.4539985,2069.6,2069.3,0.001]
[1772089859256,0.4539985,2069.4,2069.1,0.001]
[1772089859417,0.16911197,2069.4,2069.1,0.001]
[1772089861422,0.4539985,2069.3,2069.1,0.001]
[1772089862607,0.4539985,2069.1,2068.6,0.001]
[1772089862858,0.4539985,2068.9,2068.6,0.002]
[1772089864364,1.556,2069.0,2068.6,0.002]
[1772089864365,0.4539985,2068.7,2068.6,0.002]
[1772089867267,0.4539985,2068.9,2068.6,0.002]
[1772089867470,0.4539985,2068.9,2068.8,0.001]
[1772089867836,0.4539985,2069.3,2068.8,0.46057673]
[1772089868237,1.557,2069.4,2068.9,0.46057673]
[1772089868861,2.0109985,2069.4,2068.9,0.46057673]
[1772089869050,1.557,2069.4,2069.0,0.46057673]
[1772089869273,0.4539985,2069.6,2069.1,1.20825479]
[1772089869487,1.558,2069.7,2069.2,0.45957673]
[1772089869680,1.558,2069.7,2069.2,0.46057673]
[1772089869878,3.22074758,2070.0,2069.3,0.46057673]
[1772089870044,2.0129985,2070.0,2069.3,0.45957673]
[1772089870246,1.66172812,2070.0,2069.3,0.45957673]
[1772089871647,0.4539985,2069.8,2069.4,0.001]
[1772089871848,0.4539985,2069.8,2069.2,0.46057673]
[1772089872050,0.4539985,2069.8,2069.2,0.45957673]
[1772089873369,0.4539985,2069.8,2069.0,0.46057673]
[1772089873569,0.4539985,2069.8,2069.1,0.001]
[1772089874081,1.66190302,2069.7,2069.1,0.001]
[1772089874859,0.4539985,2069.6,2069.1,0.001]
[1772089875203,0.4539985,2069.6,2069.1,0.46057673]
[1772089875360,1.66189007,2069.8,2069.1,0.46057673]
[1772089875689,1.66189007,2069.8,2069.2,0.46057673]
[1772089875853,1.66189007,2069.8,2069.2,0.45957673]
[1772089877589,0.4539985,2069.7,2069.2,0.45957673]
[1772089878383,0.4539985,2069.7,2069.3,0.001]
[1772089878580,0.4539985,2069.5,2069.0,0.45957673]
[1772089879391,0.4539985,2069.5,2069.0,0.46057673]
[1772089879799,0.4539985,2069.4,2069.0,0.002]
[1772089880608,0.4539985,2069.3,2069.0,0.002]
[1772089883587,1.20808147,2069.4,2069.1,0.001]
[1772089884104,1.66207997,2069.4,2069.0,0.46057673]
[1772089884307,1.66207997,2069.4,2069.1,0.001]
[1772089886498,1.66207997,2069.4,2069.0,0.46057673]
[1772089886699,1.66207997,2069.4,2069.1,0.001]
[1772089888908,1.66207997,2069.4,2069.0,0.46057673]
[1772089889113,1.66207997,2069.4,2069.1,0.001]
[1772089890013,1.66207997,2069.4,2069.0,0.46057673]
[1772089890208,1.66207997,2069.4,2069.1,0.001]
[1772089890992,0.493467,2069.3,2069.1,0.001]
[1772089893319,1.20808147,2069.4,2069.1,0.001]
[1772089893320,1.20808147,2069.4,2069.1,0.48209995]
[1772089893492,1.70154847,2069.4,2069.1,0.001]
[1772089893899,0.493467,2069.4,2069.1,0.001]
[1772089896321,1.7015639,2069.4,2069.1,0.001]
[1772089897686,0.493467,2069.3,2069.1,0.001]
[1772089898393,0.493467,2069.3,2069.2,0.001]
[1772089898723,0.493467,2069.3,2069.1,0.001]
[1772089899112,1.70161771,2069.3,2069.1,0.001]
[1772089899319,0.493467,2069.2,2069.1,0.001]
[1772089900198,0.493467,2069.2,2069.0,0.001]
[1772089900397,0.493467,2069.2,2069.1,0.001]
[1772089900630,1.70167596,2069.2,2069.0,0.001]
[1772089901233,0.493467,2069.0,2068.6,0.001]
[1772089901398,0.493467,2069.0,2068.4,0.48209995]
[1772089901595,0.493467,2069.0,2068.4,0.48309995]
[1772089902213,0.493467,2069.0,2068.4,0.002]
[1772089902410,0.493467,2069.0,2068.4,0.48309995]
[1772089903853,1.20837159,2068.9,2068.6,0.001]
[1772089904029,0.493467,2068.8,2068.6,0.001]
[1772089906446,0.493467,2068.7,2068.6,0.001]
[1772089914966,3.27292243,2068.8,2068.6,0.001]
[1772089915971,3.27292243,2068.8,2068.7,0.001]
[1772089916170,3.27292243,2068.8,2068.5,0.48109995]
[1772089916560,1.571,2068.8,2068.6,0.46838405]
[1772089917069,1.571,2068.8,2068.7,0.46738405]
[1772089918366,1.571,2068.8,2068.6,0.46838405]
[1772089918666,1.571,2068.8,2068.7,0.001]
[1772089918967,1.571,2068.8,2068.6,0.46738405]
[1772089919868,0.44237478,2068.7,2068.4,0.001]
[1772089920072,3.22180726,2068.8,2067.7,0.46838405]
[1772089920073,0.45666864,2068.2,2067.7,0.46838405]
[1772089920243,0.89904342,2068.0,2067.7,0.46838405]
[1772089920949,0.44237478,2067.8,2067.5,0.001]
[1772089921143,0.45666864,2067.9,2067.5,0.001]
[1772089921338,0.45666864,2067.9,2067.5,0.34350248]
[1772089921879,1.65127226,2068.0,2067.5,0.34350248]
[1772089921880,0.89904342,2067.8,2067.5,0.001]
[1772089923040,2.10808798,2067.8,2067.5,0.001]
[1772089923240,1.574,2068.1,2067.5,0.001]
[1772089923241,1.574,2068.1,2067.6,0.34250248]
[1772089924547,2.78460786,2068.5,2067.7,0.34250248]
[1772089924876,1.576,2068.5,2067.7,0.34250248]
[1772089925243,1.576,2068.5,2067.9,0.34250248]
[1772089927361,1.96014389,2068.7,2068.1,0.34250248]
[1772089928745,0.001,2068.3,2068.1,0.34250248]
[1772089928948,1.576,2068.8,2068.2,0.34150248]
[1772089929276,1.576,2068.8,2068.4,0.34150248]
[1772089929572,1.576,2068.8,2068.4,1.55015662]
[1772089929784,1.5052848,2069.0,2068.6,0.34150248]
[1772089929785,0.002,2069.0,2068.6,0.34150248]
[1772089931666,0.45866864,2069.0,2068.4,0.34150248]
[1772089931847,0.45866864,2069.0,2068.4,1.55016586]
[1772089932882,0.002,2069.0,2068.5,0.34150248]
[1772089933549,0.002,2069.0,2068.6,1.55004932]
[1772089934164,0.002,2069.1,2068.7,0.33950248]
[1772089935781,0.002,2069.1,2068.9,0.33950248]
[1772089936584,0.45866864,2069.1,2068.7,0.33950248]
[1772089936780,0.45866864,2069.1,2068.5,0.33950248]
[1772089937958,1.66693166,2069.1,2068.5,1.54809784]
[1772089938156,1.66693166,2069.1,2068.6,0.33950248]
[1772089938579,0.45666864,2068.9,2068.3,0.33950248]
[1772089941611,1.66505858,2068.9,2068.5,0.001]
[1772089941812,1.66505858,2068.9,2068.5,0.34050248]
[1772089941813,0.002,2068.9,2068.5,0.34050248]
[1772089943585,0.002,2068.9,2068.5,1.54910754]
[1772089944089,0.002,2068.9,2068.5,0.34050248]
[1772089944506,0.002,2068.9,2068.6,0.33950248]
[1772089945700,0.002,2068.9,2068.6,1.20853362]
[1772089945896,0.002,2068.9,2068.7,0.33950248]
[1772089948256,0.002,2068.9,2068.8,0.33950248]
[1772089953743,0.49312154,2068.9,2068.5,0.001]
[1772089953921,0.49312154,2068.9,2068.5,0.34050248]
[1772089954333,0.002,2068.9,2068.5,0.34050248]
[1772089954645,0.002,2068.9,2068.6,0.33950248]
[1772089954829,0.002,2068.9,2068.8,0.001]
[1772089956052,0.49312154,2068.9,2068.8,0.001]
[1772089958249,1.70149313,2068.9,2068.8,0.001]
[1772089958548,0.49312154,2068.9,2068.8,0.001]
[1772089961559,1.70149313,2068.9,2068.8,0.001]
[1772089961739,0.49112154,2068.8,2068.5,0.001]
[1772089961930,0.49112154,2068.8,2068.5,0.34150248]
[1772089965572,0.002,2068.9,2068.5,0.34150248]
[1772089966279,0.49312154,2068.9,2068.7,0.001]
[1772089966593,0.002,2068.8,2068.7,0.001]
[1772089979326,0.002,2069.0,2068.7,0.001]
[1772089979839,0.502,2069.0,2068.7,0.001]
[1772089980619,1.71032447,2069.0,2068.7,0.001]